bitfinex/quotes_SOLUSD_20250918
["timestamp","ask_amount","ask_price","bid_price","bid_amount"]
[1758207967478,4.03104222,248.08,247.93,0.69]
[1758207967684,0.1,248.09,247.94,13.59559401]
[1758207967845,0.1,248.09,247.95,0.69]
[1758207968048,12.01460985,248.09,247.97,26.0]
[1758207968259,0.1,248.09,247.98,14.80404145]
[1758207968454,0.1,248.09,248.02,26.0]
[1758207968641,0.1,248.09,248.07,13.59559401]
[1758207968852,0.1,248.09,248.03,0.97432314]
[1758207969057,0.1,248.09,248.05,13.59559401]
[1758207969250,0.1,248.09,248.06,0.69]
[1758207969671,0.1,248.09,248.07,0.69]
[1758207970468,0.1,248.09,248.04,4.72150429]
[1758207970654,0.1,248.09,248.04,4.03150429]
[1758207970855,0.1,248.09,248.06,0.69]
[1758207971054,0.1,248.09,248.06,26.69]
[1758207971255,0.1,248.09,248.07,26.69]
[1758207971656,0.1,248.09,248.08,0.69]
[1758207972350,0.1,248.09,248.08,4.72095775]
[1758207972753,0.1,248.09,248.08,18.31655176]
[1758207974689,0.1,248.19,248.09,13.59559401]
[1758207974859,0.1,248.19,248.1,0.28432314]
[1758207975061,0.1,248.19,248.11,26.69]
[1758207975263,0.1,248.19,248.12,14.28559401]
[1758207975472,0.1,248.19,248.15,26.0]
[1758207976084,0.1,248.19,248.16,0.69]
[1758207976287,0.1,248.19,248.18,4.02933354]
[1758207976465,0.1,248.19,248.18,4.71933354]
[1758207976656,0.1,248.19,248.18,18.31492755]
[1758207978559,0.3,248.3,248.21,26.0]
[1758207978878,0.3,248.3,248.22,26.0]
[1758207979257,0.3,248.3,248.23,0.69]
[1758207980454,0.76,248.3,248.11,4.03047035]
[1758207980654,4.00670806,248.29,248.19,0.69]
[1758207980859,0.1,248.29,248.19,0.69]
[1758207981882,0.1,248.29,248.21,13.59559401]
[1758207982087,0.1,248.29,248.22,0.69]
[1758207982459,0.06,248.24,248.23,4.02852193]
[1758207982790,0.06,248.24,248.23,4.71852193]
[1758207982962,0.06,248.24,248.23,44.31411594]
[1758207984471,0.06,248.24,248.23,30.71852193]
[1758207984869,0.06,248.24,248.23,30.02852193]
[1758207985081,0.06,248.24,248.23,4.71852193]
[1758207986169,0.06,248.24,248.23,18.31411594]
[1758207986792,0.06,248.24,248.23,44.31411594]
[1758207987487,0.06,248.24,248.23,30.71852193]
[1758207988693,0.06,248.24,248.23,44.31411594]
[1758207990197,0.1,248.29,248.24,13.59559401]
[1758207990700,0.1,248.29,248.27,26.0]
[1758207991062,0.1,248.29,248.28,0.69]
[1758207991495,0.1,248.29,248.28,4.71771064]
[1758207992678,22.06018827,248.31,248.29,13.59559401]
[1758207992988,0.02,248.41,248.38,39.59559401]
[1758207993297,0.02,248.41,248.39,13.59559401]
[1758207993470,0.74,248.41,248.39,30.02592696]
[1758207993674,0.02,248.41,248.39,30.02592696]
[1758207994309,0.74,248.41,248.39,30.02592696]
[1758207994479,0.02,248.41,248.39,30.02592696]
[1758207995088,0.74,248.41,248.39,30.02592696]
[1758207995899,0.02,248.41,248.39,30.02592696]
[1758207998989,0.02,248.41,248.4,0.5]
[1758207999580,0.02,248.41,248.4,14.37991715]
[1758207999785,0.1,248.49,248.45,26.0]
[1758208000471,0.1,248.49,248.46,13.59559401]
[1758208000890,0.1,248.49,248.48,26.0]
[1758208001196,0.1,248.49,248.48,39.87991715]
[1758208001497,0.1,248.49,248.48,43.90438592]
[1758208001793,1e-08,248.49,248.48,43.90438592]
[1758208002782,1e-08,248.49,248.48,43.62006278]
[1758208002982,1e-08,248.49,248.48,30.02446877]
[1758208003190,0.72000001,248.49,248.48,26.0]
[1758208003503,0.72000001,248.49,248.45,4.02492722]
[1758208003688,0.72,248.48,248.43,13.59559401]
[1758208003888,1e-08,248.49,248.4,4.52564845]
[1758208004084,0.72,248.47,248.4,4.52564845]
[1758208004396,1e-08,248.49,248.41,39.99815429]
[1758208004598,1e-08,248.49,248.42,0.28432314]
[1758208004900,0.72,248.48,248.42,0.14216157]
[1758208005084,0.72,248.48,248.41,39.59559401]
[1758208005288,0.72,248.48,248.4,14.59006068]
[1758208005600,0.72,248.47,248.38,14.09101019]
[1758208005777,0.72,248.46,248.41,26.0]
[1758208006283,1e-08,248.49,248.41,26.0]
[1758208006284,0.72,248.45,248.41,26.0]
[1758208006480,0.72,248.44,248.36,4.02626886]
[1758208006684,0.72,248.43,248.27,20.13925941]
[1758208006886,0.72,248.42,248.29,1.61137632]
[1758208007098,0.72,248.41,248.28,14.09698726]
[1758208007299,0.72,248.4,248.28,14.09698726]
[1758208007492,3.90670806,248.45,248.28,14.09698726]
[1758208007700,0.72,248.39,248.29,13.59559401]
[1758208007904,0.72,248.38,248.28,14.09698726]
[1758208008092,0.72,248.37,248.31,26.0]
[1758208008293,0.72,248.42,248.31,26.0]
[1758208008480,0.72,248.42,248.35,26.0]
[1758208009397,0.72,248.41,248.35,26.0]
[1758208009880,0.72,248.4,248.35,26.0]
[1758208010097,0.72,248.39,248.29,17.62314244]
[1758208010286,0.72,248.38,248.29,4.02754843]
[1758208010492,0.72,248.37,248.29,4.02754843]
[1758208010700,0.72,248.36,248.29,4.02754843]
[1758208010901,0.72,248.35,248.29,14.0964195]
[1758208011099,0.72,248.35,248.29,4.02754843]
[1758208011623,0.28432314,248.43,248.21,12.18873129]
[1758208011624,0.72,248.34,248.21,12.18873129]
[1758208011811,4.74695343,248.33,248.23,10.07119062]
[1758208012110,0.72,248.32,248.23,14.09982676]
[1758208012411,0.72,248.31,248.26,26.0]
[1758208012596,0.72,248.3,248.23,4.02852193]
[1758208012795,0.72,248.29,248.23,4.02852193]
[1758208013002,0.72,248.32,248.23,4.02852193]
[1758208013201,0.72,248.31,248.23,4.02852193]
[1758208013388,0.72,248.3,248.23,4.02852193]
[1758208013718,0.72,248.3,248.23,14.09982676]
[1758208014988,0.72,248.3,248.23,30.02852193]
[1758208015713,0.72,248.3,248.23,4.02852193]
[1758208015896,0.66,248.34,248.24,13.87991715]
[1758208016212,0.66,248.34,248.24,13.59559401]
[1758208016923,6.03744732,248.32,248.26,26.0]
[1758208017100,0.66,248.31,248.26,26.0]
[1758208017889,0.66,248.3,248.27,4.02787288]
[1758208018285,0.66,248.29,248.27,4.02787288]
[1758208018491,0.66,248.29,248.23,10.07130483]
[1758208018492,0.66,248.28,248.22,26.0]
[1758208018711,0.66,248.28,248.21,0.13]
[1758208018902,0.66,248.27,248.21,0.13]
[1758208019915,0.66,248.27,248.21,4.15874519]
[1758208020218,6.03744732,248.25,248.21,0.13]
[1758208020595,0.66,248.24,248.16,0.03]
[1758208020821,0.28432314,248.22,248.16,0.03]
[1758208020994,6.03744732,248.18,248.16,0.03]
[1758208021196,6.03744732,248.18,248.11,0.1]
[1758208021406,6.03744732,248.13,248.11,0.1]
[1758208021712,6.03744732,248.14,248.11,0.1]
[1758208021924,4.69021438,248.13,248.11,0.1]
[1758208022296,0.66,248.12,248.11,0.1]
[1758208024296,6.53744732,248.15,248.11,4.13044676]
[1758208024500,0.71,248.14,248.11,4.13044676]
[1758208024707,0.71,248.13,248.11,0.1]
[1758208025106,6.03744732,248.12,248.11,0.1]
[1758208025509,8.98364741,248.12,248.11,0.1]
[1758208026010,26.89387247,248.12,248.11,0.1]
[1758208026412,20.85642515,248.12,248.11,0.1]
[1758208026720,9.26797055,248.12,248.11,0.1]
[1758208027300,8.98364741,248.12,248.11,0.1]
[1758208027504,2.94620009,248.12,248.11,0.1]
[1758208027715,2.23620009,248.12,248.11,0.1]
[1758208028718,2.94620009,248.12,248.11,0.1]
[1758208029924,2.94620009,248.12,248.0,10.08025462]
[1758208029925,4.03047035,248.11,248.02,4.03179072]
[1758208030101,6.03744732,248.09,248.02,4.03179072]
[1758208030301,2.73620009,248.1,248.02,14.11162299]
[1758208030819,2.73620009,248.1,248.05,26.0]
[1758208031119,2.73620009,248.1,248.05,26.27]
[1758208031823,2.73620009,248.1,248.06,0.27]
[1758208032022,2.73620009,248.1,248.08,4.03095775]
[1758208032810,2.73620009,248.1,248.09,26.0]
[1758208033326,0.71,248.21,248.09,26.27]
[1758208033622,1.21,248.21,248.11,26.0]
[1758208033823,0.5,248.21,248.12,0.27]
[1758208034139,0.71,248.25,248.13,14.1055092]
[1758208034338,4.73620009,248.26,248.16,26.0]
[1758208035320,4.73620009,248.26,248.13,34.25623664]
[1758208035321,0.71,248.25,248.13,34.25623664]
[1758208035623,0.06,248.19,248.13,60.25623664]
[1758208036503,0.06,248.19,248.13,40.1055092]
[1758208037599,0.06,248.19,248.16,26.0]
[1758208038109,0.06,248.19,248.16,26.27]
[1758208038423,0.06,248.19,248.17,4.02949591]
[1758208039611,0.06,248.19,248.16,10.07412264]
[1758208039612,0.71,248.18,248.15,4.02971271]
[1758208039908,0.71,248.17,248.1,14.10710231]
[1758208040126,0.06,248.19,248.1,14.10710231]
[1758208041233,0.06,248.19,248.1,14.37710231]
[1758208041607,0.06,248.19,248.1,14.10710231]
[1758208041815,0.71,248.18,248.1,14.10710231]
[1758208043032,2.9296,248.17,248.1,14.10710231]
[1758208044029,2.9296,248.17,248.13,26.0]
[1758208044212,2.9296,248.17,248.14,0.27]
[1758208044412,2.9296,248.17,248.13,26.0]
[1758208044730,2.9296,248.17,248.14,14.10494075]
[1758208045033,2.9296,248.17,248.14,14.37494075]
[1758208045228,2.9296,248.17,248.15,0.27]
[1758208045434,2.9296,248.17,248.16,0.27]
[1758208046540,2.9296,248.17,248.16,26.27]
[1758208047036,0.06,248.19,248.16,40.37380399]
[1758208047337,0.06,248.19,248.16,14.37380399]
[1758208048345,0.06,248.19,248.18,26.0]
[1758208049042,0.06,248.19,248.18,30.02933354]
[1758208049238,0.06,248.19,248.02,1.64254561]
[1758208049239,0.77,248.19,248.11,0.14216157]
[1758208049430,0.77,248.19,248.14,26.0]
[1758208049632,0.71,248.18,248.14,26.0]
[1758208049944,0.06,248.19,248.02,13.62559401]
[1758208049945,6.03744732,248.15,248.02,13.62559401]
[1758208050244,0.71,248.14,248.02,0.03]
[1758208050541,0.71,248.14,248.05,26.0]
[1758208050751,6.03744732,248.15,248.03,14.11119622]
[1758208051053,0.71,248.13,248.03,14.11119622]
[1758208051253,0.71,248.13,248.03,40.11119622]
[1758208051419,0.26499998,248.14,248.04,0.27]
[1758208052043,0.26499998,248.14,248.05,26.0]
[1758208052232,0.71,248.13,248.05,26.0]
[1758208052618,2.0,248.13,248.05,26.0]
[1758208053349,2.0,248.13,248.06,14.10948963]
[1758208053526,2.0,248.13,248.09,26.0]
[1758208055228,2.0,248.13,248.1,4.0306328]
[1758208055426,0.68,248.12,248.1,4.0306328]
[1758208055642,2.0,248.13,248.05,26.03]
[1758208055643,0.68,248.11,248.06,4.03128275]
[1758208055838,0.68,248.1,248.06,14.10948963]
[1758208056148,2.0,248.13,248.06,14.10948963]
[1758208057055,2.0,248.13,248.1,26.0]
[1758208057258,2.0,248.13,248.11,4.03047035]
[1758208057740,2.0,248.13,248.12,0.27]
[1758208057944,0.06,248.19,248.12,14.14991715]
[1758208058258,0.06,248.19,248.15,26.0]
[1758208058971,0.68,248.18,248.15,26.0]
[1758208059129,0.68,248.17,248.11,14.10664623]
[1758208059823,0.06,248.19,248.12,0.27]
[1758208060049,0.06,248.19,248.15,26.0]
[1758208060761,0.74,248.19,248.14,26.0]
[1758208060961,0.06,248.19,248.14,26.0]
[1758208061268,0.74,248.19,248.11,56.22852765]
[1758208062067,0.74,248.19,248.11,36.07617588]
[1758208062234,6.71744732,248.18,248.11,36.07617588]
[1758208062561,0.68,248.17,248.11,36.07617588]
[1758208062944,0.06,248.19,248.11,36.07617588]
[1758208063756,0.06,248.19,248.11,40.10664623]
[1758208064361,0.68,248.18,248.11,40.10664623]
[1758208064861,0.68,248.18,248.11,14.10664623]
[1758208065358,6.34580009,248.18,248.11,10.07617588]
[1758208068860,5.66580009,248.18,248.11,10.07617588]
[1758208069647,5.66580009,248.18,248.11,34.258998]
[1758208069849,5.66580009,248.18,248.12,0.27]
[1758208070639,5.66580009,248.18,248.13,14.1055092]
[1758208070869,5.66580009,248.18,248.13,14.3755092]
[1758208071070,5.66580009,248.18,248.14,0.27]
[1758208071645,5.66580009,248.18,248.13,14.1055092]
[1758208071946,5.66580009,248.18,248.13,14.3755092]
[1758208072449,6.34580009,248.18,248.13,14.1055092]
[1758208072845,0.68,248.17,248.13,10.07536372]
[1758208073565,5.66580009,248.18,248.13,10.07536372]
[1758208073772,0.68,248.17,248.13,10.07536372]
[1758208073975,5.66580009,248.18,248.13,10.07536372]
[1758208074563,5.72580009,248.18,248.13,10.07536372]
[1758208074744,6.40580009,248.18,248.13,10.07536372]
[1758208075151,5.72580009,248.18,248.14,0.27]
[1758208075885,5.72580009,248.18,248.15,0.67298206]
[1758208076258,5.72580009,248.18,248.16,0.27]
[1758208076458,5.72580009,248.18,248.13,10.34536372]
[1758208076666,5.72580009,248.18,248.13,10.07536372]
[1758208076960,5.72580009,248.18,248.14,0.27]
[1758208077683,5.72580009,248.18,248.15,0.27]
[1758208077978,5.72580009,248.18,248.14,13.87991715]
[1758208078149,5.72580009,248.18,248.14,14.14991715]
[1758208078647,5.72580009,248.18,248.15,14.10437235]
[1758208079769,5.72580009,248.18,248.17,43.90941306]
[1758208080575,5.72580009,248.18,248.17,44.17941306]
[1758208080760,0.06,248.19,248.18,13.87991715]
[1758208081078,0.06,248.19,248.18,14.14991715]
[1758208081263,0.06,248.21,248.2,26.0]
[1758208081684,0.06,248.21,248.2,44.17892601]
[1758208081972,1e-08,248.21,248.2,44.17892601]
[1758208082478,1e-08,248.21,248.2,43.90892601]
[1758208083466,1e-08,248.22,248.21,13.87991715]
[1758208083663,1e-08,248.22,248.21,18.58164834]
[1758208084566,1e-08,248.22,248.21,18.31164834]
[1758208084783,1e-08,248.22,248.21,17.90876369]
[1758208085460,1e-08,248.22,248.21,43.90876369]
[1758208086384,1e-08,248.22,248.21,30.02884654]
[1758208087781,1e-08,248.22,248.21,18.17876369]
[1758208087987,0.1,248.29,248.25,13.59559401]
[1758208088162,0.1,248.29,248.26,0.28432314]
[1758208088361,0.1,248.29,248.26,0.68712665]
[1758208089277,0.1,248.29,248.28,26.0]
[1758208089578,0.1,248.29,248.28,39.87991715]
[1758208089883,0.1,248.29,248.28,43.90762779]
[1758208090463,0.67,248.36,248.29,13.87991715]
[1758208090680,0.67,248.36,248.29,14.28267199]
[1758208091077,0.67,248.36,248.3,13.59559401]
[1758208091382,0.77,248.39,248.33,26.0]
[1758208091591,0.77,248.39,248.32,13.59559401]
[1758208091760,0.77,248.39,248.35,26.0]
[1758208092084,0.67,248.38,248.36,4.02641327]
[1758208092255,0.67,248.37,248.36,4.02641327]
[1758208093673,0.77,248.39,248.36,4.02641327]
[1758208093873,0.67,248.38,248.36,14.09244644]
[1758208094076,0.67,248.37,248.36,14.09244644]
[1758208094484,0.1,248.39,248.36,14.09244644]
[1758208094868,0.1,248.39,248.36,4.02641327]
[1758208095075,0.1,248.39,248.38,26.0]
[1758208095273,0.1,248.39,248.38,30.02608905]
[1758208096279,0.1,248.39,248.38,43.62168306]
[1758208096770,0.1,248.39,248.38,30.02608905]
[1758208097486,0.77,248.39,248.38,30.02608905]
[1758208097790,0.77,248.39,248.38,4.02608905]
[1758208098174,0.77,248.39,248.36,4.02626878]
[1758208098368,0.67,248.38,248.33,4.02677468]
[1758208098580,0.67,248.37,248.3,13.59559401]
[1758208098780,0.67,248.36,248.3,13.59559401]
[1758208098977,0.1,248.39,248.3,39.59559401]
[1758208099268,0.67,248.35,248.3,13.59559401]
[1758208099478,0.67,248.34,248.31,4.02722403]
[1758208099692,0.67,248.34,248.32,26.0]
[1758208100079,0.67,248.37,248.32,26.0]
[1758208100279,0.67,248.36,248.32,26.0]
[1758208100482,0.67,248.35,248.32,26.0]
[1758208100677,0.67,248.34,248.32,26.0]
[1758208100991,3.88942118,248.38,248.31,14.09528411]
[1758208101195,0.67,248.37,248.32,13.59559401]
[1758208101498,0.67,248.37,248.3,13.59559401]
[1758208101499,0.1,248.39,248.33,14.0941489]
[1758208101875,0.67,248.38,248.33,14.0941489]
[1758208102077,0.67,248.37,248.33,14.0941489]
[1758208102370,0.67,248.36,248.33,14.0941489]
[1758208102576,0.1,248.39,248.33,14.0941489]
[1758208102794,0.67,248.38,248.33,14.0941489]
[1758208102974,0.67,248.37,248.33,14.0941489]
[1758208103172,0.67,248.36,248.33,14.0941489]
[1758208103370,0.1,248.39,248.36,26.0]
[1758208103880,0.77,248.39,248.37,4.02625115]
[1758208104292,0.1,248.39,248.37,4.02625115]
[1758208104999,0.1,248.39,248.38,39.59559401]
[1758208105496,0.1,248.39,248.38,39.99820291]
[1758208105699,0.1,248.39,248.38,43.62168306]
[1758208106884,0.1,248.44,248.39,13.59559401]
[1758208107089,0.1,248.44,248.43,13.87991715]
[1758208107286,0.1,248.46,248.45,39.87991715]
[1758208107775,0.1,248.46,248.45,43.90487186]
[1758208109224,0.1,248.46,248.45,43.62054872]
[1758208111501,0.77,248.46,248.45,30.02495471]
[1758208112900,0.1,248.46,248.45,43.62054872]
[1758208113998,0.1,248.46,248.45,30.02495471]
[1758208116698,0.78,248.46,248.44,26.0]
[1758208116916,0.68,248.45,248.37,14.09171113]
[1758208117106,0.68,248.44,248.37,14.09171113]
[1758208117290,0.68,248.44,248.4,26.0]
[1758208117495,0.1,248.46,248.4,26.0]
[1758208117699,0.68,248.45,248.37,14.09171113]
[1758208117897,0.68,248.44,248.37,14.09171113]
[1758208118120,0.68,248.43,248.4,26.0]
[1758208118420,0.68,248.42,248.37,14.09171113]
[1758208118712,0.68,248.41,248.37,14.09171113]
[1758208119227,0.68,248.45,248.37,14.09171113]
[1758208119406,0.68,248.45,248.38,13.87991715]
[1758208120309,0.1,248.46,248.38,13.87991715]
[1758208120513,0.68,248.44,248.37,30.02625115]
[1758208120717,0.68,248.43,248.37,4.02625115]
[1758208121013,1.67841829,248.45,248.35,0.28432314]
[1758208121014,0.68,248.42,248.35,0.28432314]
[1758208121430,0.68,248.42,248.35,13.87991715]
[1758208121602,0.68,248.41,248.35,13.87991715]
[1758208122416,1.67841829,248.45,248.34,40.09342737]
[1758208122417,0.68,248.4,248.34,40.09342737]
[1758208122629,0.68,248.39,248.34,26.0]
[1758208122808,0.68,248.38,248.29,0.03]
[1758208123004,0.68,248.38,248.31,26.0]
[1758208123821,0.68,248.38,248.3,0.28432314]
[1758208124203,0.68,248.38,248.32,26.0]
[1758208124919,0.68,248.37,248.32,30.02693458]
[1758208125111,0.68,248.36,248.32,30.02693458]
[1758208125319,0.68,248.35,248.32,30.02693458]
[1758208125908,0.68,248.35,248.32,4.02693458]
[1758208126118,0.68,248.34,248.3,4.0272597]
[1758208126510,0.68,248.33,248.3,4.0272597]
[1758208126713,0.68,248.32,248.29,0.03]
[1758208127733,1.67841829,248.34,248.29,0.03]
[1758208127734,4.02685924,248.34,248.29,0.03]
[1758208127935,0.68,248.31,248.29,0.03]
[1758208128726,0.68,248.3,248.29,0.03]
[1758208130108,0.68,248.34,248.29,0.03]
[1758208131024,0.68,248.33,248.29,0.03]
[1758208131227,2.0,248.35,248.31,26.0]
[1758208131414,2.0,248.35,248.31,26.27]
[1758208132405,2.0,248.35,248.31,26.0]
[1758208133336,2.0,248.35,248.32,14.09471648]
[1758208133546,0.68,248.34,248.32,4.02706185]
[1758208134616,0.68,248.34,248.29,0.03]
[1758208135112,2.0,248.35,248.29,0.03]
[1758208135314,0.68,248.33,248.29,0.03]
[1758208136048,2.0,248.35,248.29,0.03]
[1758208136547,0.66,248.34,248.29,0.03]
[1758208136852,6.0343808,248.33,248.29,0.03]
[1758208137056,6.0343808,248.31,248.24,0.03]
[1758208137358,6.0343808,248.29,248.24,0.03]
[1758208137651,15.19548086,248.3,248.24,0.03]
[1758208137854,11.60960021,248.28,248.24,0.03]
[1758208138155,17.64398101,248.28,248.24,0.03]
[1758208138450,11.18579959,248.27,248.24,0.03]
[1758208139056,11.84579959,248.27,248.24,0.03]
[1758208139271,15.87367247,248.27,248.24,0.03]
[1758208139549,35.78797042,248.27,248.24,0.03]
[1758208139748,29.75358962,248.27,248.24,0.03]
[1758208144954,26.0,248.25,248.24,1e-08]
[1758208145151,49.65817219,248.25,248.24,1e-08]
[1758208145356,54.70797221,248.25,248.24,1e-08]
[1758208146448,48.95791455,248.25,248.24,1e-08]
[1758208146650,54.99229535,248.25,248.24,1e-08]
[1758208149249,50.57117556,248.25,248.24,1e-08]
[1758208149453,56.60555636,248.25,248.24,1e-08]
[1758208149659,54.99229535,248.25,248.24,1e-08]
[1758208150656,44.92971717,248.25,248.24,1e-08]
[1758208150965,50.96409797,248.25,248.24,1e-08]
[1758208152136,73.64247675,248.25,248.24,1e-08]
[1758208153053,57.67067413,248.25,248.24,1e-08]
[1758208153266,54.99229535,248.25,248.24,1e-08]
[1758208154269,54.99229535,248.25,248.21,0.13]
[1758208154270,39.59559401,248.22,248.21,1e-08]
[1758208154468,13.87991715,248.21,248.2,0.03]
[1758208154762,14.58991715,248.21,248.2,0.03]
[1758208154963,51.94867875,248.18,248.17,0.03]
[1758208155367,61.26557863,248.18,248.17,0.03]
[1758208155747,62.87929522,248.18,248.17,0.03]
[1758208155964,56.84491442,248.18,248.17,0.03]
[1758208156366,60.87424796,248.18,248.17,0.03]
[1758208156747,13.87991715,248.17,248.15,1e-08]
[1758208156960,25.94867875,248.16,248.15,1e-08]
[1758208157162,58.74867875,248.16,248.15,1e-08]
[1758208157374,73.46345576,248.16,248.15,1e-08]
[1758208157549,204.46345576,248.16,248.15,1e-08]
[1758208158255,208.49311404,248.16,248.15,1e-08]
[1758208158469,77.49311404,248.16,248.15,1e-08]
[1758208158965,39.36873324,248.16,248.15,1e-08]
[1758208159274,39.22657167,248.16,248.15,1e-08]
[1758208159872,39.36873324,248.16,248.15,1e-08]
[1758208160169,38.51657167,248.16,248.15,1e-08]
[1758208160477,24.77881609,248.16,248.15,1e-08]
[1758208160777,14.71477701,248.16,248.15,1e-08]
[1758208160946,14.71477701,248.16,248.15,0.30000001]
[1758208162472,14.71477701,248.16,248.15,4.32982068]
[1758208164555,6.76428887,248.26,248.15,14.40437236]
[1758208164756,6.76428887,248.26,248.16,0.3]
[1758208164971,8.94960021,248.25,248.16,0.3]
[1758208165172,14.98398101,248.25,248.16,0.3]
[1758208165360,6.0343808,248.23,248.15,1e-08]
[1758208165752,4.02884654,248.21,248.15,4.02981149]
[1758208166456,0.5,248.22,248.15,4.02981149]
[1758208166656,0.5,248.22,248.15,4.32981149]
[1758208167465,0.5,248.22,248.15,1e-08]
[1758208167869,0.5,248.22,248.16,4.02965828]
[1758208168770,0.5,248.22,248.17,0.3]
[1758208169070,0.5,248.22,248.18,0.3]
[1758208169977,0.5,248.22,248.19,4.02917119]
[1758208170280,0.5,248.22,248.2,0.3]
[1758208170463,0.5,248.22,248.19,4.02917119]
[1758208170667,0.5,248.22,248.21,0.3]
[1758208170964,0.5,248.22,248.19,4.02917119]
[1758208171167,0.5,248.22,248.18,10.07304677]
[1758208171168,0.5,248.22,248.18,4.02932799]
[1758208172376,0.5,248.22,248.18,4.32932799]
[1758208172673,0.5,248.22,248.18,0.3]
[1758208172864,1.16,248.22,248.15,1e-08]
[1758208173055,0.5,248.22,248.16,0.3]
[1758208173871,0.5,248.22,248.15,4.02978421]
[1758208174080,0.5,248.22,248.16,0.3]
[1758208174682,7.8179145,248.22,248.15,1e-08]
[1758208175658,5.18876852,248.22,248.15,1e-08]
[1758208175860,7.8179145,248.22,248.15,1e-08]
[1758208176674,0.5,248.22,248.15,1e-08]
[1758208176976,3.12914598,248.22,248.15,4.02982068]
[1758208177190,7.15783927,248.22,248.15,1e-08]
[1758208177380,0.66,248.21,248.15,1e-08]
[1758208177564,2.62914598,248.2,248.15,1e-08]
[1758208177960,0.66,248.19,248.15,1e-08]
[1758208178181,2.62914598,248.18,248.15,1e-08]
[1758208178369,2.62914598,248.16,248.15,1e-08]
[1758208178887,3.28914598,248.16,248.15,1e-08]
[1758208179185,7.31880426,248.16,248.15,1e-08]
[1758208179580,3.28914598,248.16,248.15,1e-08]
[1758208180275,7.31880426,248.16,248.15,1e-08]
[1758208180476,3.28914598,248.16,248.15,1e-08]
[1758208180786,10.94960021,248.18,248.15,1e-08]
[1758208181460,10.94960021,248.18,248.15,0.30000001]
[1758208181788,10.94960021,248.18,248.15,1e-08]
[1758208182766,0.66,248.17,248.15,1e-08]
[1758208183784,10.94960021,248.18,248.15,1e-08]
[1758208185289,11.60960021,248.18,248.15,1e-08]
[1758208185785,0.66,248.17,248.15,1e-08]
[1758208186281,3.28914598,248.16,248.15,1e-08]
[1758208186867,20.91439827,248.16,248.15,1e-08]
[1758208187067,32.14832162,248.16,248.15,1e-08]
[1758208188392,18.26840447,248.16,248.15,1e-08]
[1758208189701,11.60960021,248.16,248.15,1e-08]
[1758208189876,10.94960021,248.16,248.15,1e-08]
[1758208191002,18.26840447,248.16,248.15,1e-08]
[1758208193164,32.14832162,248.16,248.15,1e-08]
[1758208193801,31.20343121,248.16,248.15,1e-08]
[1758208195094,29.51917564,248.16,248.15,1e-08]
[1758208195271,31.20343121,248.16,248.15,1e-08]
[1758208195791,27.17377293,248.16,248.15,1e-08]
[1758208195988,31.20343121,248.16,248.15,1e-08]
[1758208196394,10.94960021,248.16,248.15,1e-08]
[1758208196993,11.66960021,248.16,248.15,1e-08]
[1758208197401,10.94960021,248.16,248.15,1e-08]
[1758208199573,10.94960021,248.16,248.15,0.30000001]
[1758208199907,10.94960021,248.16,248.15,1e-08]
[1758208200898,10.94960021,248.16,248.15,0.30000001]
[1758208201197,10.94960021,248.16,248.15,4.32982068]
[1758208202377,0.06,248.22,248.15,4.32982068]
[1758208202378,0.06,248.22,248.18,26.0]